fUSD/lending_fUSD_20250107
["ID","MTS","AMOUNT","RATE_DAILY","PERIOD"]
[348009816,1736266244026,-500.0,9.861e-05,2]
[348009817,1736266244035,-500.0,9.861e-05,2]
[348009818,1736266244046,-500.0,9.861e-05,2]
[348009819,1736266244055,-500.0,9.861e-05,2]
[348009820,1736266244065,-1276.3,9.861e-05,2]
[348009821,1736266244074,-500.0,9.861e-05,2]
[348009822,1736266244083,-500.0,9.861e-05,2]
[348009824,1736266244093,-500.0,9.861e-05,2]
[348009826,1736266244102,-500.0,9.861e-05,2]
[348009828,1736266244112,-658.1,9.861e-05,2]
[348009829,1736266244121,-500.0,9.861e-05,2]
[348009830,1736266244131,-595.2,9.861e-05,2]
[348009831,1736266244141,-500.0,9.861e-05,2]
[348009832,1736266244151,-500.0,9.861e-05,2]
[348009833,1736266244160,-500.0,9.861e-05,2]
[348009834,1736266244170,-500.0,9.861e-05,2]
[348009835,1736266244179,-569.13,9.861e-05,2]
[348009836,1736266244189,-500.0,9.861e-05,2]
[348009837,1736266244198,-500.0,9.861e-05,2]
[348009838,1736266244211,-1493.07,9.861e-05,2]
[348009839,1736266244221,-500.0,9.861e-05,2]
[348009840,1736266244231,-500.0,9.861e-05,2]
[348009841,1736266244240,-500.0,9.861e-05,2]
[348009842,1736266244249,-500.0,9.861e-05,2]
[348009843,1736266244259,-646.78,9.861e-05,2]
[348009844,1736266244269,-500.0,9.861e-05,2]
[348009845,1736266244279,-500.0,9.861e-05,2]
[348009846,1736266244289,-500.0,9.861e-05,2]
[348009847,1736266244299,-1088.36,9.861e-05,2]
[348009848,1736266244383,-533.44,9.861e-05,2]
[348009849,1736266244393,-500.0,9.861e-05,2]
[348009850,1736266244403,-1293.13,9.861e-05,2]
[348009851,1736266244412,-500.0,9.861e-05,2]
[348009852,1736266244422,-577.52017109,9.861e-05,2]
[348009853,1736266244432,-500.0,9.861e-05,2]
[348009854,1736266244442,-889.99,9.861e-05,2]
[348009855,1736266244452,-500.0,9.861e-05,2]
[348009856,1736266244463,-500.0,9.861e-05,2]
[348009857,1736266244474,-525.70862249,9.861e-05,2]
[348009858,1736266244483,-500.0,9.861e-05,2]
[348009859,1736266244493,-500.0,9.861e-05,2]
[348009860,1736266244504,-609.10297193,9.861e-05,2]
[348009861,1736266244514,-581.01,9.861e-05,2]
[348009862,1736266244525,-500.0,9.861e-05,2]
[348009863,1736266244535,-500.0,9.861e-05,2]
[348009864,1736266244545,-1144.47,9.861e-05,2]
[348009865,1736266244555,-1013.75,9.861e-05,2]
[348009866,1736266244564,-500.0,9.861e-05,2]
[348009867,1736266244574,-500.0,9.861e-05,2]
[348009868,1736266244583,-500.0,9.861e-05,2]
[348009869,1736266244592,-500.0,9.861e-05,2]
[348009870,1736266244601,-500.0,9.861e-05,2]
[348009871,1736266244612,-500.0,9.861e-05,2]
[348009872,1736266244622,-500.0,9.861e-05,2]
[348009873,1736266244632,-500.0,9.861e-05,2]
[348009874,1736266244642,-696.76,9.861e-05,2]
[348009875,1736266244652,-500.0,9.861e-05,2]
[348009876,1736266244661,-500.0,9.861e-05,2]
[348009877,1736266244671,-500.0,9.861e-05,2]
[348009878,1736266244683,-500.0,9.861e-05,2]
[348009879,1736266244696,-500.0,9.861e-05,2]
[348009880,1736266244706,-500.0,9.861e-05,2]
[348009881,1736266244719,-500.0,9.861e-05,2]
[348009882,1736266244730,-801.95,9.861e-05,2]
[348009883,1736266244740,-500.0,9.861e-05,2]
[348009884,1736266244749,-201.93657344,9.861e-05,2]
[348009885,1736266244758,-500.0,9.861e-05,2]
[348009886,1736266244768,-557.71,9.861e-05,2]
[348009887,1736266244778,-500.0,9.861e-05,2]
[348009888,1736266244788,-3566.58,9.861e-05,2]
[348009889,1736266244800,-500.0,9.861e-05,2]
[348009890,1736266244811,-500.0,9.861e-05,2]
[348009891,1736266244821,-500.0,9.861e-05,2]
[348009892,1736266244831,-636.05,9.861e-05,2]
[348009893,1736266244841,-500.0,9.861e-05,2]
[348009894,1736266244851,-500.0,9.861e-05,2]
[348009895,1736266244861,-500.0,9.861e-05,2]
[348009896,1736266244871,-668.45,9.861e-05,2]
[348009897,1736266244880,-500.0,9.861e-05,2]
[348009898,1736266244890,-500.0,9.861e-05,2]
[348009899,1736266244900,-500.0,9.861e-05,2]
[348009900,1736266244909,-500.0,9.861e-05,2]
[348009901,1736266244919,-601.88,9.861e-05,2]
[348009902,1736266244929,-500.0,9.861e-05,2]
[348009903,1736266244939,-500.0,9.861e-05,2]
[348009904,1736266244949,-500.0,9.861e-05,2]
[348009905,1736266244959,-586.88,9.861e-05,2]
[348009906,1736266244971,-500.0,9.861e-05,2]
[348009907,1736266244982,-1311.0,9.861e-05,2]
[348009908,1736266244993,-500.0,9.861e-05,2]
[348009909,1736266245002,-500.0,9.861e-05,2]
[348009910,1736266245011,-3104.09,9.861e-05,2]
[348009911,1736266245021,-500.0,9.861e-05,2]
[348009912,1736266245031,-500.0,9.861e-05,2]
[348009913,1736266245041,-500.0,9.861e-05,2]
[348009914,1736266245051,-500.0,9.861e-05,2]
[348009915,1736266245060,-500.0,9.861e-05,2]
[348009916,1736266245069,-800.98,9.861e-05,2]
[348009917,1736266245079,-500.0,9.861e-05,2]
[348009918,1736266245089,-521.32,9.861e-05,2]
[348009919,1736266245098,-500.0,9.861e-05,2]
[348009920,1736266245107,-1074.12,9.861e-05,2]
[348009921,1736266245116,-259.71795456,9.861e-05,2]
[348009922,1736266245128,-500.0,9.861e-05,2]
[348009923,1736266245138,-500.0,9.861e-05,2]
[348009924,1736266245147,-500.0,9.861e-05,2]
[348009925,1736266245157,-1579.72,9.861e-05,2]
[348009926,1736266245167,-597.06,9.861e-05,2]
[348009927,1736266245176,-500.0,9.861e-05,2]
[348009928,1736266245193,-500.0,9.861e-05,2]
[348009929,1736266245202,-528.6,9.861e-05,2]
[348009930,1736266245215,-1171.54,9.861e-05,2]
[348009931,1736266245225,-2174.75,9.861e-05,2]
[348009932,1736266245234,-500.0,9.861e-05,2]
[348009933,1736266245244,-500.0,9.861e-05,2]
[348009934,1736266245253,-4957.87,9.861e-05,2]
[348009935,1736266245265,-500.0,9.861e-05,2]
[348009936,1736266245274,-500.0,9.861e-05,2]
[348009937,1736266245284,-500.0,9.861e-05,2]
[348009938,1736266245294,-4976.91,9.861e-05,2]
[348009939,1736266245303,-836.89,9.861e-05,2]
[348009940,1736266245313,-500.0,9.861e-05,2]
[348009941,1736266245322,-500.0,9.861e-05,2]
[348009942,1736266245333,-501.67383313,9.861e-05,2]
[348009943,1736266245342,-500.0,9.861e-05,2]
[348009944,1736266245352,-795.78,9.861e-05,2]
[348009945,1736266245361,-1288.27,9.861e-05,2]
[348009946,1736266245370,-500.0,9.861e-05,2]
[348009947,1736266245380,-500.0,9.861e-05,2]
[348009948,1736266245390,-500.0,9.861e-05,2]
[348009949,1736266245399,-500.0,9.861e-05,2]
[348009950,1736266245409,-520.69,9.861e-05,2]
[348009951,1736266245418,-2429.07,9.861e-05,2]
[348009952,1736266245428,-500.0,9.861e-05,2]
[348009953,1736266245437,-500.0,9.861e-05,2]
[348009954,1736266245447,-343.36893547,9.861e-05,2]
[348009955,1736266245457,-500.0,9.861e-05,2]
[348009956,1736266245473,-500.0,9.861e-05,2]
[348009957,1736266245483,-500.0,9.861e-05,2]
[348009958,1736266245492,-500.0,9.861e-05,2]
[348009959,1736266245502,-500.0,9.861e-05,2]
[348009960,1736266245512,-500.0,9.861e-05,2]
[348009961,1736266245522,-500.0,9.861e-05,2]
[348009962,1736266245532,-1080.02,9.861e-05,2]
[348009963,1736266245543,-500.0,9.861e-05,2]
[348009964,1736266245553,-500.0,9.861e-05,2]
[348009965,1736266245564,-500.0,9.861e-05,2]
[348009966,1736266245574,-500.0,9.861e-05,2]
[348009967,1736266245584,-1301.73,9.861e-05,2]
[348009968,1736266245594,-500.0,9.861e-05,2]
[348009969,1736266245604,-500.0,9.861e-05,2]
[348009970,1736266245614,-680.46,9.861e-05,2]
[348009971,1736266245624,-538.3788573,9.861e-05,2]
[348009972,1736266245633,-500.0,9.861e-05,2]
[348009973,1736266245643,-500.0,9.861e-05,2]
[348009974,1736266245651,-501.45288796,9.861e-05,2]
[348009975,1736266245661,-500.0,9.861e-05,2]
[348009976,1736266245671,-1584.56,9.861e-05,2]
[348009977,1736266245681,-528.25,9.861e-05,2]
[348009978,1736266245691,-1519.4,9.861e-05,2]
[348009979,1736266245704,-500.0,9.861e-05,2]
[348009980,1736266245718,-500.0,9.861e-05,2]
[348009981,1736266245728,-538.54,9.861e-05,2]
[348009982,1736266245738,-500.0,9.861e-05,2]
[348009983,1736266245748,-511.09,9.861e-05,2]
[348009984,1736266245758,-1229.23,9.861e-05,2]
[348009985,1736266245768,-500.0,9.861e-05,2]
[348009986,1736266245779,-500.0,9.861e-05,2]
[348009987,1736266245789,-3837.43,9.861e-05,2]
[348009988,1736266245800,-448.92773476,9.861e-05,2]
[348009989,1736266245811,-8815.01,9.861e-05,2]
[348009990,1736266245821,-1326.13,9.861e-05,2]
[348009991,1736266245831,-500.0,9.861e-05,2]
[348009992,1736266245841,-789.12,9.861e-05,2]
[348009993,1736266245850,-1482.21,9.861e-05,2]
[348009994,1736266245860,-500.0,9.861e-05,2]
[348009995,1736266245870,-500.0,9.861e-05,2]
[348009996,1736266245879,-500.0,9.861e-05,2]
[348009997,1736266245889,-500.0,9.861e-05,2]
[348009998,1736266245899,-319.19720033,9.861e-05,2]
[348009999,1736266245908,-500.0,9.861e-05,2]
[348010000,1736266245919,-500.0,9.861e-05,2]
[348010001,1736266245929,-500.0,9.861e-05,2]
[348010002,1736266245938,-500.0,9.861e-05,2]
[348010003,1736266245949,-500.0,9.861e-05,2]
[348010004,1736266245958,-1728.07,9.861e-05,2]
[348010005,1736266245970,-500.0,9.861e-05,2]
[348010006,1736266245980,-500.0,9.861e-05,2]
[348010007,1736266245990,-500.0,9.861e-05,2]
[348010008,1736266246000,-500.0,9.861e-05,2]
[348010009,1736266246010,-500.0,9.861e-05,2]
[348010011,1736266246019,-500.0,9.861e-05,2]
[348010013,1736266246029,-1757.08,9.861e-05,2]
[348010015,1736266246039,-500.0,9.861e-05,2]
[348010017,1736266246049,-639.67,9.861e-05,2]
[348010019,1736266246059,-500.0,9.861e-05,2]
[348010021,1736266246068,-4519.18,9.861e-05,2]
[348010023,1736266246078,-500.0,9.861e-05,2]
[348010025,1736266246089,-500.0,9.861e-05,2]
[348010027,1736266246098,-500.0,9.861e-05,2]
[348010029,1736266246108,-500.0,9.861e-05,2]
[348010030,1736266246118,-500.0,9.861e-05,2]
[348010032,1736266246127,-617.71,9.861e-05,2]
[348010034,1736266246136,-500.35960262,9.861e-05,2]
[348010035,1736266246145,-500.0,9.861e-05,2]
[348010037,1736266246155,-504.91,9.861e-05,2]
[348010038,1736266246164,-500.0,9.861e-05,2]
[348010039,1736266246175,-500.0,9.861e-05,2]
[348010040,1736266246185,-500.0,9.861e-05,2]
[348010041,1736266246195,-259.00110942,9.861e-05,2]
[348010042,1736266246204,-500.0,9.861e-05,2]
[348010043,1736266246220,-1868.43,9.861e-05,2]
[348010044,1736266246230,-500.0,9.861e-05,2]
[348010045,1736266246239,-500.0,9.861e-05,2]
[348010046,1736266246250,-500.0,9.861e-05,2]
[348010047,1736266246260,-500.0,9.861e-05,2]
[348010048,1736266246269,-1207.9,9.861e-05,2]
[348010049,1736266246279,-500.0,9.861e-05,2]
[348010050,1736266246289,-528.62,9.861e-05,2]
[348010051,1736266246298,-500.0,9.861e-05,2]
[348010052,1736266246308,-500.0,9.861e-05,2]
[348010053,1736266246317,-616.41,9.861e-05,2]
[348010054,1736266246327,-5190.51,9.861e-05,2]
[348010055,1736266246338,-500.0,9.861e-05,2]
[348010056,1736266246348,-715.37,9.861e-05,2]
[348010057,1736266246358,-500.0,9.861e-05,2]
[348010058,1736266246368,-500.0,9.861e-05,2]
[348010059,1736266246378,-500.0,9.861e-05,2]
[348010060,1736266246387,-500.0,9.861e-05,2]
[348010061,1736266246397,-500.0,9.861e-05,2]
[348010062,1736266246407,-500.0,9.861e-05,2]
[348010063,1736266246417,-1805.32,9.861e-05,2]
[348010064,1736266246427,-503.24468143,9.861e-05,2]
[348010065,1736266246436,-500.0,9.861e-05,2]
[348010066,1736266246445,-500.0,9.861e-05,2]
[348010067,1736266246456,-500.0,9.861e-05,2]
[348010068,1736266246468,-620.92,9.861e-05,2]
[348010069,1736266246478,-500.0,9.861e-05,2]
[348010070,1736266246487,-500.0,9.861e-05,2]
[348010071,1736266246497,-500.0,9.862e-05,2]
[348010072,1736266246507,-502.58282037,9.862e-05,2]
[348010073,1736266246517,-500.0,9.862e-05,2]
[348010074,1736266246526,-502.1252678,9.862e-05,2]
[348010075,1736266246536,-500.0,9.862e-05,2]
[348010076,1736266246546,-605.45,9.862e-05,2]
[348010077,1736266246557,-500.0,9.862e-05,2]
[348010078,1736266246567,-501.41678424,9.862e-05,2]
[348010079,1736266246577,-508.80364221,9.862e-05,2]
[348010080,1736266246586,-500.0,9.862e-05,2]
[348010081,1736266246596,-503.23853459,9.862e-05,2]
[348010082,1736266246606,-504.44498473,9.862e-05,2]
[348010083,1736266246615,-800.9,9.862e-05,2]
[348010084,1736266246625,-500.0,9.862e-05,2]
[348010085,1736266246635,-500.0,9.862e-05,2]
[348010086,1736266246644,-500.0,9.862e-05,2]
[348010087,1736266246654,-500.0,9.862e-05,2]
[348010088,1736266246663,-582.04,9.862e-05,2]
[348010089,1736266246672,-506.51035193,9.862e-05,2]
[348010090,1736266246683,-502.35382049,9.862e-05,2]
[348010091,1736266246695,-500.0,9.862e-05,2]
[348010092,1736266246705,-505.58088482,9.862e-05,2]
[348010093,1736266246718,-500.0,9.862e-05,2]
[348010094,1736266246730,-502.85705948,9.862e-05,2]
[348010095,1736266246739,-500.0,9.862e-05,2]
[348010097,1736266246749,-500.0,9.862e-05,2]
[348010099,1736266246759,-515.86535961,9.862e-05,2]
[348010101,1736266246769,-506.15772033,9.862e-05,2]
[348010102,1736266246779,-500.0,9.862e-05,2]
[348010103,1736266246788,-500.0,9.862e-05,2]
[348010104,1736266246799,-500.0,9.862e-05,2]
[348010105,1736266246810,-500.0,9.862e-05,2]
[348010106,1736266246820,-1287.6,9.862e-05,2]
[348010107,1736266246830,-500.0,9.862e-05,2]
[348010108,1736266246839,-500.50178922,9.862e-05,2]
[348010109,1736266246849,-505.71934052,9.862e-05,2]
[348010110,1736266246858,-506.41603155,9.862e-05,2]
[348010111,1736266246867,-503.19065978,9.862e-05,2]
[348010112,1736266246877,-500.0,9.862e-05,2]
[348010113,1736266246887,-572.98,9.862e-05,2]
[348010114,1736266246897,-503.19638266,9.862e-05,2]
[348010115,1736266246906,-500.32260009,9.862e-05,2]
[348010116,1736266246915,-523.26784027,9.862e-05,2]
[348010117,1736266246925,-511.49,9.862e-05,2]
[348010118,1736266246935,-500.0,9.862e-05,2]
[348010119,1736266246945,-503.43432556,9.862e-05,2]
[348010120,1736266246954,-839.07,9.862e-05,2]
[348010121,1736266246965,-502.0638164,9.862e-05,2]
[348010122,1736266246975,-500.0,9.862e-05,2]
[348010123,1736266246984,-500.0,9.862e-05,2]
[348010124,1736266246994,-500.0,9.862e-05,2]
[348010125,1736266247003,-533.96,9.862e-05,2]
[348010126,1736266247013,-504.95834196,9.862e-05,2]
[348010127,1736266247022,-500.0,9.862e-05,2]
[348010128,1736266247032,-150.0,9.862e-05,2]
[348010129,1736266247041,-500.0,9.862e-05,2]
[348010130,1736266247051,-500.0,9.862e-05,2]
[348010131,1736266247060,-5000.0,9.862e-05,2]
[348010132,1736266247069,-1014.1,9.862e-05,2]
[348010133,1736266247079,-500.0,9.862e-05,2]
[348010134,1736266247088,-500.0,9.862e-05,2]
[348010135,1736266247098,-500.0,9.862e-05,2]
[348010136,1736266247107,-531.38,9.862e-05,2]
[348010137,1736266247117,-500.0,9.862e-05,2]
[348010138,1736266247126,-800.93,9.862e-05,2]
[348010139,1736266247135,-500.0,9.862e-05,2]
[348010140,1736266247146,-500.0,9.862e-05,2]
[348010141,1736266247155,-500.0,9.862e-05,2]
[348010142,1736266247165,-500.0,9.862e-05,2]
[348010143,1736266247175,-734.52,9.862e-05,2]
[348010144,1736266247184,-500.0,9.862e-05,2]
[348010145,1736266247193,-505.92971405,9.862e-05,2]
[348010146,1736266247203,-500.0,9.862e-05,2]
[348010147,1736266247213,-500.0,9.862e-05,2]
[348010148,1736266247222,-1011.44,9.862e-05,2]
[348010149,1736266247232,-500.0,9.862e-05,2]
[348010150,1736266247241,-508.78,9.862e-05,2]
[348010151,1736266247251,-1159.16,9.862e-05,2]
[348010152,1736266247260,-500.62593596,9.862e-05,2]
[348010153,1736266247270,-650.67,9.862e-05,2]
[348010154,1736266247280,-500.0,9.862e-05,2]
[348010155,1736266247289,-1136.49,9.862e-05,2]
[348010156,1736266247299,-500.0,9.862e-05,2]
[348010157,1736266247309,-500.0,9.862e-05,2]
[348010158,1736266247319,-3955.95,9.862e-05,2]
[348010159,1736266247328,-501.08166663,9.862e-05,2]
[348010160,1736266247338,-500.0,9.862e-05,2]
[348010161,1736266247347,-500.0,9.862e-05,2]
[348010162,1736266247357,-500.0,9.862e-05,2]
[348010163,1736266247366,-500.0,9.862e-05,2]
[348010164,1736266247376,-501.61934249,9.862e-05,2]
[348010165,1736266247386,-1387.63,9.862e-05,2]
[348010166,1736266247396,-500.0,9.862e-05,2]
[348010167,1736266247406,-513.43,9.862e-05,2]
[348010168,1736266247415,-500.0,9.862e-05,2]
[348010169,1736266247426,-500.0,9.862e-05,2]
[348010170,1736266247435,-573.37,9.862e-05,2]
[348010171,1736266247445,-934.24,9.862e-05,2]
[348010172,1736266247455,-500.0,9.862e-05,2]
[348010173,1736266247466,-1267.31,9.862e-05,2]
[348010174,1736266247476,-502.19937739,9.862e-05,2]
[348010175,1736266247486,-500.0,9.862e-05,2]
[348010176,1736266247496,-669.78,9.862e-05,2]
[348010177,1736266247506,-500.0,9.862e-05,2]
[348010178,1736266247516,-1377.06,9.862e-05,2]
[348010179,1736266247526,-500.0,9.862e-05,2]
[348010180,1736266247536,-629.76,9.862e-05,2]
[348010181,1736266247546,-500.0,9.862e-05,2]
[348010182,1736266247556,-1509.89,9.862e-05,2]
[348010183,1736266247566,-500.0,9.862e-05,2]
[348010184,1736266247575,-1258.57,9.862e-05,2]
[348010185,1736266247585,-500.0,9.862e-05,2]
[348010186,1736266247594,-2127.7,9.862e-05,2]
[348010187,1736266247603,-500.0,9.862e-05,2]
[348010188,1736266247613,-677.87,9.862e-05,2]
[348010189,1736266247623,-500.0,9.862e-05,2]
[348010190,1736266247632,-500.0,9.862e-05,2]
[348010191,1736266247642,-869.51,9.862e-05,2]
[348010192,1736266247651,-500.0,9.862e-05,2]
[348010193,1736266247660,-1949.35,9.862e-05,2]
[348010194,1736266247670,-500.0,9.862e-05,2]
[348010195,1736266247681,-531.8,9.862e-05,2]
[348010196,1736266247691,-1912.1,9.862e-05,2]
[348010197,1736266247701,-695.96,9.862e-05,2]
[348010198,1736266247710,-1932.98,9.862e-05,2]
[348010199,1736266247721,-600.0,9.864e-05,2]
[348010200,1736266247730,-500.0,9.9e-05,2]
[348010201,1736266247739,-2500.0,9.9e-05,3]
[348010202,1736266247749,-150.0,9.943e-05,2]
[348010203,1736266247758,-200.0,9.95e-05,2]
[348010204,1736266247768,-286.47839337,9.95e-05,2]
[348010205,1736266247778,-1155.8,9.964e-05,2]
[348010206,1736266247787,-500.0,9.964e-05,2]
[348010207,1736266247797,-1224.84,9.964e-05,2]
[348010208,1736266247807,-2955.27,9.964e-05,2]
[348010209,1736266247817,-500.0,9.964e-05,2]
[348010210,1736266247827,-500.0,9.964e-05,2]
[348010211,1736266247837,-1281.69,9.964e-05,2]
[348010212,1736266247847,-1543.05,9.964e-05,2]
[348010213,1736266247858,-561.17,9.964e-05,2]
[348010214,1736266247868,-2101.04,9.964e-05,2]
[348010215,1736266247878,-833.29,9.964e-05,2]
[348010216,1736266247888,-1203.13,9.964e-05,2]
[348010217,1736266247899,-3182.49,9.964e-05,2]
[348010218,1736266247913,-1338.36,9.964e-05,2]
[348010219,1736266247927,-2497.96,9.964e-05,2]
[348010220,1736266247936,-500.0,9.965e-05,2]
[348010221,1736266247946,-420.0,9.981e-05,2]
[348010222,1736266247957,-29087.5257994,9.988e-05,2]
[348010223,1736266247973,-150.99,9.999e-05,2]
[348010224,1736266247984,-500.0,9.999e-05,2]
[348010225,1736266247994,-1031.9,9.999e-05,2]
[348010226,1736266248005,-2827.57,9.999e-05,2]
[348010227,1736266248018,-1216.88,9.999e-05,2]
[348010228,1736266248028,-3381.56,9.999e-05,2]
[348010229,1736266248040,-2116.71,9.999e-05,2]
[348010230,1736266248051,-3472.35,9.999e-05,2]
[348010231,1736266248062,-8671.73,9.999e-05,2]
[348010232,1736266248072,-500.0,9.999e-05,2]
[348010233,1736266248084,-604.57,9.999e-05,2]
[348010234,1736266248094,-1622.02,9.999e-05,2]
[348010235,1736266248105,-1080.8,9.999e-05,2]
[348010236,1736266248115,-2624.65,9.999e-05,2]
[348010237,1736266248125,-677.36,9.999e-05,2]
[348010238,1736266248135,-5660.46,9.999e-05,2]
[348010239,1736266248144,-2201.76,9.999e-05,2]
[348010240,1736266248155,-1699.89,9.999e-05,2]
[348010241,1736266248164,-410210.18252173,0.0001,2]
[348010242,1736266248174,-2000.0,0.0001,2]
[348010243,1736266248184,-200.0,0.0001,2]
[348010244,1736266248194,-161.38,0.0001,2]
[348010245,1736266248204,-564.93652321,0.0001,2]
[348010246,1736266248223,-3800.0,0.0001,3]
[348010247,1736266248234,-511.55296013,0.0001,2]
[348010248,1736266248245,-986.67093332,0.0001,2]
[348010249,1736266248256,-11361.0,0.00010034,2]
[348010250,1736266248267,-4150.7334,0.00010036,2]
[348010251,1736266248278,-22531.6486,0.00010036,2]
[348010252,1736266248288,-164.97112933,0.00010036,2]
[348010253,1736266248299,-150.0,0.00010085,2]
[348010254,1736266248310,-150.0,0.00010085,2]
[348010255,1736266248321,-150.0,0.00010085,2]
[348010256,1736266248332,-200.0,0.000101,2]
[348010257,1736266248343,-150.0,0.00010104,2]
[348010258,1736266248354,-1000.0,0.0001011,2]
[348010259,1736266248364,-150.0,0.00010119,2]
[348010260,1736266248375,-493.49,0.00010126,2]
[348010261,1736266248386,-492.61,0.00010129,2]
[348010262,1736266248396,-150.0,0.0001013,2]
[348010263,1736266248407,-508.86,0.00010131,2]
[348010264,1736266248418,-500.0,0.00010134,2]
[348010265,1736266248429,-500.0,0.00010134,2]
[348010266,1736266248439,-500.0,0.00010134,2]
[348010267,1736266248451,-500.0,0.00010134,2]
[348010268,1736266248467,-500.0,0.00010134,2]
[348010269,1736266248479,-500.0,0.00010134,2]
[348010270,1736266248490,-500.0,0.00010134,2]
[348010271,1736266248502,-500.0,0.00010134,2]
[348010272,1736266248513,-500.0,0.00010134,2]
[348010273,1736266248524,-1196.01,0.00010134,2]
[348010274,1736266248536,-1072.23,0.00010134,2]
[348010275,1736266248547,-318624.23490596,0.00010134,2]
[348010276,1736266248560,-500.0,0.00010134,2]
[348010277,1736266248572,-491.25,0.00010134,2]
[348010278,1736266248583,-509.51,0.00010135,2]
[348010279,1736266248595,-501.93,0.00010135,2]
[348010280,1736266248606,-639.68,0.00010135,2]
[348010281,1736266248616,-500.0,0.00010135,2]
[348010282,1736266248627,-736.81,0.00010135,2]
[348010283,1736266248639,-547.46,0.00010135,2]
[348010284,1736266248650,-500.0,0.00010135,2]
[348010285,1736266248660,-500.0,0.00010135,2]
[348010286,1736266248671,-1109.29,0.00010135,2]
[348010287,1736266248685,-500.0,0.00010135,2]
[348010288,1736266248696,-500.0,0.00010135,2]
[348010289,1736266248707,-500.0,0.00010135,2]
[348010290,1736266248727,-573.03,0.00010135,2]
[348010291,1736266248738,-500.0,0.00010135,2]
[348010292,1736266248749,-500.0,0.00010135,2]
[348010293,1736266248761,-703.21,0.00010135,2]
[348010294,1736266248773,-500.0,0.00010135,2]
[348010295,1736266248784,-500.0,0.00010135,2]
[348010296,1736266248796,-594.45,0.00010135,2]
[348010297,1736266248807,-500.0,0.00010135,2]
[348010298,1736266248818,-500.0,0.00010135,2]
[348010299,1736266248830,-500.0,0.00010135,2]
[348010300,1736266248841,-761.13,0.00010135,2]
[348010301,1736266248853,-1146.09,0.00010135,2]
[348010302,1736266248864,-500.0,0.00010135,2]
[348010303,1736266248874,-1017.63,0.00010135,2]
[348010304,1736266248885,-500.0,0.00010135,2]
[348010305,1736266248895,-771.69,0.00010135,2]
[348010306,1736266248907,-511.58,0.00010135,2]
[348010307,1736266248917,-500.0,0.00010135,2]
[348010308,1736266248927,-782.91,0.00010135,2]
[348010309,1736266248937,-500.0,0.00010135,2]
[348010310,1736266248947,-500.0,0.00010135,2]
[348010311,1736266248958,-1078.2,0.00010135,2]
[348010312,1736266248975,-587.47,0.00010135,2]
[348010313,1736266248986,-635.72,0.00010135,2]
[348010314,1736266248997,-500.0,0.00010135,2]
[348010315,1736266249008,-500.0,0.00010135,2]
[348010316,1736266249019,-500.0,0.00010135,2]
[348010317,1736266249030,-500.0,0.00010135,2]
[348010318,1736266249041,-500.0,0.00010135,2]
[348010319,1736266249053,-532.1,0.00010135,2]
[348010320,1736266249064,-578.55,0.00010135,2]
[348010321,1736266249075,-1261.88,0.00010135,2]
[348010322,1736266249086,-500.0,0.00010135,2]
[348010323,1736266249097,-500.0,0.00010135,2]
[348010324,1736266249107,-500.0,0.00010135,2]
[348010325,1736266249118,-840.38,0.00010135,2]
[348010326,1736266249129,-500.0,0.00010135,2]
[348010327,1736266249139,-329.21410116,0.00010135,2]
[348010328,1736266249150,-500.0,0.00010135,2]
[348010329,1736266249160,-500.0,0.00010135,2]
[348010330,1736266249170,-500.0,0.00010135,2]
[348010331,1736266249181,-500.0,0.00010135,2]
[348010332,1736266249192,-924.29,0.00010135,2]
[348010333,1736266249202,-570.6,0.00010135,2]
[348010334,1736266249217,-1470.82,0.00010135,2]